fUSD/lending_fUSD_20241026
["ID","MTS","AMOUNT","RATE_DAILY","PERIOD"]
[340857598,1729950657579,-500.0,0.00056438,120]
[340857599,1729950657589,-500.0,0.00056438,120]
[340857600,1729950657598,-500.0,0.00056438,120]
[340857601,1729950657608,-500.0,0.00056438,120]
[340857602,1729950657617,-500.0,0.00056438,120]
[340857603,1729950657627,-500.0,0.00056438,120]
[340857604,1729950657637,-500.0,0.00056438,120]
[340857605,1729950657646,-500.0,0.00056438,120]
[340857606,1729950657655,-500.0,0.00056438,120]
[340857607,1729950657665,-500.0,0.00056438,120]
[340857608,1729950657675,-500.0,0.00056438,120]
[340857609,1729950657684,-500.0,0.00056438,120]
[340857610,1729950657694,-500.0,0.00056438,120]
[340857611,1729950657703,-495.54326843,0.00056438,120]
[340857612,1729950657712,-622.21,0.00056438,120]
[340857613,1729950657722,-500.0,0.00056438,7]
[340857614,1729950657733,-500.0,0.00056438,120]
[340857615,1729950657742,-500.0,0.00056438,120]
[340857616,1729950657751,-500.0,0.00056438,120]
[340857617,1729950657760,-500.0,0.00056438,120]
[340857618,1729950657770,-544.56,0.00056438,120]
[340857619,1729950657779,-500.0,0.00056438,120]
[340857620,1729950657788,-646.96,0.00056438,120]
[340857621,1729950657798,-427.07704347,0.00056438,120]
[340857622,1729950657807,-500.0,0.00056438,120]
[340857623,1729950657816,-500.0,0.00056438,120]
[340857624,1729950657825,-500.0,0.00056438,120]
[340857625,1729950657835,-500.0,0.00056438,25]
[340857626,1729950657844,-500.0,0.00056438,120]
[340857627,1729950657853,-356.93163095,0.00056438,120]
[340857628,1729950657863,-570.88115979,0.00056438,120]
[340857629,1729950657872,-500.0,0.00056438,120]
[340857630,1729950657881,-500.0,0.00056438,120]
[340857631,1729950657890,-500.0,0.00056438,120]
[340857632,1729950657899,-500.0,0.00056438,120]
[340857633,1729950657908,-500.0,0.00056438,120]
[340857634,1729950657917,-500.0,0.00056438,120]
[340857635,1729950657927,-500.0,0.00056438,120]
[340857636,1729950657937,-1053.87889746,0.00056438,120]
[340857637,1729950657947,-500.0,0.00056438,120]
[340857638,1729950657958,-500.0,0.00056438,120]
[340857639,1729950657967,-442.87654099,0.00056438,120]
[340857640,1729950657976,-1062.59,0.00056438,120]
[340857641,1729950657986,-500.0,0.00056438,120]
[340857642,1729950657995,-500.0,0.00056438,120]
[340857643,1729950658004,-500.0,0.00056438,120]
[340857644,1729950658014,-407.44015276,0.00056438,120]
[340857645,1729950658025,-500.0,0.00056438,120]
[340857646,1729950658034,-500.0,0.00056438,120]
[340857647,1729950658044,-500.0,0.00056438,120]
[340857648,1729950658055,-1368.19,0.00056438,120]
[340857649,1729950658064,-500.0,0.00056438,120]
[340857650,1729950658074,-1822.42,0.00056438,120]
[340857651,1729950658083,-346.39466219,0.00056438,120]
[340857652,1729950658092,-875.75,0.00056438,120]
[340857653,1729950658102,-2994.32,0.00056438,120]
[340857654,1729950658111,-500.0,0.00056438,120]
[340857655,1729950658120,-500.0,0.00056438,120]
[340857656,1729950658130,-500.0,0.00056438,120]
[340857657,1729950658139,-1119.44,0.00056438,120]
[340857658,1729950658148,-500.0,0.00056438,120]
[340857659,1729950658157,-337.78942934,0.00056438,120]
[340857660,1729950658166,-541.37327319,0.00056438,120]
[340857661,1729950658176,-500.0,0.00056438,120]
[340857662,1729950658185,-1723.29,0.00056438,120]
[340857663,1729950658194,-500.0,0.00056438,120]
[340857664,1729950658203,-500.0,0.00056438,120]
[340857665,1729950658212,-500.0,0.00056438,120]
[340857666,1729950658221,-853.38,0.00056438,21]
[340857667,1729950658230,-1013.67705963,0.00056438,120]
[340857668,1729950658239,-500.0,0.00056438,120]
[340857669,1729950658250,-500.0,0.00056438,120]
[340857670,1729950658260,-500.0,0.00056438,120]
[340857671,1729950658270,-500.0,0.00056438,120]
[340857672,1729950658280,-500.0,0.00056438,120]
[340857673,1729950658289,-500.0,0.00056438,120]
[340857674,1729950658298,-500.0,0.00056438,120]
[340857675,1729950658307,-500.0,0.00056438,120]
[340857676,1729950658316,-500.0,0.00056438,120]
[340857677,1729950658325,-500.0,0.00056438,120]
[340857678,1729950658334,-500.0,0.00056438,120]
[340857679,1729950658343,-500.0,0.00056438,120]
[340857680,1729950658353,-500.0,0.00056438,120]
[340857681,1729950658361,-5331.28,0.00056438,120]
[340857682,1729950658372,-500.0,0.00056438,120]
[340857683,1729950658381,-500.0,0.00056438,120]
[340857684,1729950658391,-500.0,0.00056438,120]
[340857685,1729950658400,-500.0,0.00056438,120]
[340857686,1729950658409,-755.58,0.00056438,120]
[340857687,1729950658419,-500.0,0.00056438,120]
[340857688,1729950658429,-500.0,0.00056438,120]
[340857689,1729950658438,-1730.63,0.00056438,120]
[340857690,1729950658448,-500.0,0.00056438,120]
[340857691,1729950658459,-500.0,0.00056438,120]
[340857692,1729950658470,-916.92,0.00056438,3]
[340857693,1729950658479,-894.21,0.00056438,120]
[340857694,1729950658488,-500.0,0.00056438,120]
[340857695,1729950658497,-500.0,0.00056438,120]
[340857696,1729950658506,-500.84762399,0.00056438,120]
[340857697,1729950658515,-2988.0,0.00056438,120]
[340857698,1729950658524,-500.0,0.00056438,120]
[340857699,1729950658533,-500.0,0.00056438,120]
[340857700,1729950658542,-591.67768917,0.00056438,120]
[340857701,1729950658550,-500.0,0.00056438,120]
[340857702,1729950658559,-290.62428453,0.00056438,120]
[340857703,1729950658568,-500.0,0.00056438,120]
[340857704,1729950658579,-500.0,0.00056438,120]
[340857705,1729950658588,-500.0,0.00056438,120]
[340857706,1729950658597,-500.0,0.00056438,120]
[340857707,1729950658607,-500.0,0.00056438,120]
[340857708,1729950658616,-960.37,0.00056438,120]
[340857709,1729950658626,-1175.82,0.00056438,120]
[340857710,1729950658635,-604.4,0.00056438,120]
[340857711,1729950658644,-500.0,0.00056438,120]
[340857712,1729950658652,-500.0,0.00056438,120]
[340857713,1729950658662,-500.0,0.00056438,120]
[340857714,1729950658671,-475.14647082,0.00056438,120]
[340857715,1729950658680,-500.0,0.00056438,120]
[340857716,1729950658689,-500.0,0.00056438,120]
[340857717,1729950658698,-500.0,0.00056438,120]
[340857718,1729950658707,-500.0,0.00056438,120]
[340857719,1729950658716,-2385.55,0.00056438,120]
[340857720,1729950658725,-500.0,0.00056438,120]
[340857721,1729950658734,-500.0,0.00056438,120]
[340857722,1729950658744,-500.0,0.00056438,120]
[340857723,1729950658753,-500.0,0.00056438,120]
[340857724,1729950658762,-500.0,0.00056438,120]
[340857725,1729950658771,-500.0,0.00056438,120]
[340857726,1729950658780,-500.0,0.00056438,120]
[340857727,1729950658790,-542.87928273,0.00056438,120]
[340857728,1729950658799,-558.32,0.00056438,120]
[340857729,1729950658808,-500.0,0.00056438,120]
[340857730,1729950658817,-500.0,0.00056438,120]
[340857731,1729950658826,-500.0,0.00056438,120]
[340857732,1729950658920,-180.642797,0.00056438,120]
[340857733,1729950658930,-500.0,0.00056438,120]
[340857734,1729950658939,-500.0,0.00056438,120]
[340857735,1729950658949,-319.56255355,0.00056445,2]
[340857736,1729950658958,-168.69631345,0.00056536,28]
[340857737,1729950658967,-839.73,0.000567,60]
[340857738,1729950658977,-106828.6176414,0.000568,120]
[340857739,1729950658988,-151.0,0.000568,120]
[340857740,1729950658998,-151.0,0.000568,120]
[340857741,1729950659007,-151.0,0.000568,7]
[340857742,1729950659020,-193.430116,0.000568,120]
[340857743,1729950659029,-193.430116,0.000568,120]
[340857744,1729950659039,-539.953584,0.000568,120]
[340857745,1729950659048,-539.953584,0.000568,120]
[340857746,1729950659058,-174.476946,0.000568,120]
[340857747,1729950659070,-174.476946,0.000568,120]
[340857748,1729950659080,-151.0,0.000568,30]
[340857749,1729950659092,-157.718504,0.000568,120]
[340857750,1729950659102,-174.362886,0.000568,120]
[340857751,1729950659112,-174.362886,0.000568,120]
[340857752,1729950659122,-169.150758,0.000568,120]
[340857753,1729950659131,-169.150758,0.000568,120]
[340857754,1729950659140,-169.544829,0.000568,120]
[340857755,1729950659150,-169.544829,0.000568,120]
[340857756,1729950659160,-186.98732,0.000568,120]
[340857757,1729950659170,-186.98732,0.000568,120]
[340857758,1729950659179,-151.0,0.000568,120]
[340857759,1729950659188,-223.153046,0.000568,120]
[340857760,1729950659198,-223.153046,0.000568,120]
[340857761,1729950659207,-226.895858,0.000568,120]
[340857762,1729950659216,-226.895858,0.000568,120]
[340857763,1729950659226,-151.0,0.000568,120]
[340857764,1729950659235,-490.20749951,0.00056986,120]
[340857765,1729950659244,-502.05970455,0.00056986,120]
[340857766,1729950659254,-541.72377402,0.00056986,120]
[340857767,1729950659263,-500.0,0.00056986,120]
[340857768,1729950659272,-557.34614994,0.00056986,120]
[340857769,1729950659281,-500.0,0.00056986,120]
[340857770,1729950659291,-516.99205479,0.00056986,120]
[340857771,1729950659300,-500.0,0.00056986,120]
[340857772,1729950659310,-368.54301497,0.00056986,120]
[340857773,1729950659320,-500.0,0.00056986,120]
[340857774,1729950659329,-519.11885294,0.00056986,120]
[340857775,1729950659338,-517.34625505,0.00056986,120]
[340857776,1729950659348,-500.0,0.00056986,120]
[340857777,1729950659357,-500.0,0.00056986,120]
[340857778,1729950659367,-424.40569731,0.00056986,120]
[340857779,1729950659377,-500.0,0.00056986,120]
[340857780,1729950659387,-500.0,0.00056986,60]
[340857781,1729950659396,-500.0,0.00056986,120]
[340857782,1729950659405,-282.2500641,0.00056986,120]
[340857783,1729950659414,-405.79963596,0.00056986,120]
[340857784,1729950659423,-500.0,0.00056986,120]
[340857785,1729950659432,-500.0,0.00056986,120]
[340857786,1729950659442,-500.0,0.00056986,120]
[340857787,1729950659451,-500.0,0.00056986,120]
[340857788,1729950659460,-500.0,0.00056986,120]
[340857789,1729950659469,-500.0,0.00056986,120]
[340857790,1729950659478,-500.0,0.00056986,120]
[340857791,1729950659488,-163.69152656,0.00056986,120]
[340857792,1729950659497,-500.0,0.00056986,120]
[340857793,1729950659506,-500.0,0.00056986,120]
[340857794,1729950659516,-500.0,0.00056986,120]
[340857795,1729950659526,-500.0,0.00056986,120]
[340857796,1729950659535,-500.0,0.00056986,120]
[340857797,1729950659544,-500.0,0.00056986,120]
[340857798,1729950659553,-500.0,0.00056986,120]
[340857799,1729950659562,-500.0,0.00056986,120]
[340857800,1729950659572,-500.0,0.00056986,120]
[340857801,1729950659582,-500.0,0.00056986,120]
[340857802,1729950659591,-500.0,0.00056986,120]
[340857803,1729950659601,-500.0,0.00056986,120]
[340857804,1729950659610,-500.0,0.00056986,120]
[340857805,1729950659619,-622.21,0.00056986,120]
[340857806,1729950659628,-500.0,0.00056986,7]
[340857807,1729950659638,-500.0,0.00056986,120]
[340857808,1729950659647,-500.0,0.00056986,120]
[340857809,1729950659657,-500.0,0.00056986,120]
[340857810,1729950659666,-500.0,0.00056986,120]
[340857811,1729950659675,-544.56,0.00056986,120]
[340857812,1729950659686,-500.0,0.00056986,120]
[340857813,1729950659696,-646.96,0.00056986,120]
[340857814,1729950659705,-233.80356786,0.00056986,120]
[340857815,1729950659714,-500.0,0.00056986,120]
[340857816,1729950659724,-282.38978102,0.00056986,120]
[340857817,1729950659733,-548.0460258,0.00056986,25]
[340857818,1729950659742,-536.49828376,0.00056986,120]
[340857819,1729950659752,-500.0,0.00056986,120]
[340857820,1729950659761,-500.0,0.00056986,120]
[340857821,1729950659770,-500.0,0.00056986,120]
[340857822,1729950659779,-500.0,0.00056986,120]
[340857823,1729950659789,-500.0,0.00056986,120]
[340857824,1729950659798,-496.28706369,0.00056986,120]
[340857825,1729950659808,-417.51825727,0.00056986,120]
[340857826,1729950659817,-500.0,0.00056986,120]
[340857827,1729950659829,-500.0,0.00056986,120]
[340857828,1729950659838,-1062.59,0.00056986,120]
[340857829,1729950659849,-500.0,0.00056986,120]
[340857830,1729950659858,-500.0,0.00056986,120]
[340857831,1729950659868,-500.0,0.00056986,120]
[340857832,1729950659878,-500.0,0.00056986,120]
[340857833,1729950659889,-500.0,0.00056986,120]
[340857834,1729950659899,-500.0,0.00056986,120]
[340857835,1729950659910,-1368.19,0.00056986,120]
[340857836,1729950659921,-500.0,0.00056986,120]
[340857837,1729950659932,-1822.42,0.00056986,120]
[340857838,1729950659941,-875.75,0.00056986,120]
[340857839,1729950659951,-2994.32,0.00056986,120]
[340857840,1729950659960,-500.0,0.00056986,120]
[340857841,1729950659970,-500.0,0.00056986,120]
[340857842,1729950659979,-500.0,0.00056986,120]
[340857843,1729950659988,-1119.44,0.00056986,120]
[340857844,1729950659999,-500.0,0.00056986,120]
[340857845,1729950660009,-628.40854329,0.00056986,120]
[340857846,1729950660023,-1723.29,0.00056986,120]
[340857847,1729950660034,-500.0,0.00056986,120]
[340857848,1729950660043,-500.0,0.00056986,120]
[340857849,1729950660052,-500.0,0.00056986,120]
[340857850,1729950660061,-853.38,0.00056986,21]
[340857851,1729950660071,-500.0,0.00056986,120]
[340857852,1729950660080,-500.0,0.00056986,120]
[340857853,1729950660090,-500.0,0.00056986,120]
[340857854,1729950660099,-500.0,0.00056986,120]
[340857855,1729950660109,-238.28424111,0.00056986,120]
[340857856,1729950660119,-539.72922926,0.00056986,120]
[340857857,1729950660129,-500.0,0.00056986,120]
[340857858,1729950660139,-482.34582681,0.00056986,120]
[340857859,1729950660150,-500.0,0.00056986,120]
[340857860,1729950660160,-258.93401434,0.00056986,120]
[340857861,1729950660170,-500.0,0.00056986,120]
[340857862,1729950660180,-500.0,0.00056986,120]
[340857863,1729950660189,-500.0,0.00056986,120]
[340857864,1729950660198,-5331.28,0.00056986,120]
[340857865,1729950660207,-500.0,0.00056986,120]
[340857866,1729950660216,-500.0,0.00056986,120]
[340857867,1729950660226,-500.0,0.00056986,120]
[340857868,1729950660236,-474.42195435,0.00056986,120]
[340857869,1729950660245,-755.58,0.00056986,120]
[340857870,1729950660254,-500.0,0.00056986,120]
[340857871,1729950660263,-500.0,0.00056986,120]
[340857872,1729950660273,-1730.63,0.00056986,120]
[340857873,1729950660282,-500.0,0.00056986,120]
[340857874,1729950660292,-500.0,0.00056986,120]
[340857875,1729950660301,-916.92,0.00056986,3]
[340857876,1729950660310,-500.0,0.00056986,120]
[340857877,1729950660319,-894.21,0.00056986,120]
[340857878,1729950660328,-500.0,0.00056986,120]
[340857879,1729950660337,-2988.0,0.00056986,120]
[340857880,1729950660347,-500.0,0.00056986,120]
[340857881,1729950660355,-500.0,0.00056986,120]
[340857882,1729950660365,-500.0,0.00056986,120]
[340857883,1729950660446,-500.0,0.00056986,120]
[340857884,1729950660455,-500.0,0.00056986,120]
[340857885,1729950660465,-501.24741285,0.00056986,120]
[340857886,1729950660476,-500.0,0.00056986,120]
[340857887,1729950660485,-559.64639058,0.00056986,120]
[340857888,1729950660494,-960.37,0.00056986,120]
[340857889,1729950660503,-1175.82,0.00056986,120]
[340857890,1729950660512,-604.4,0.00056986,120]
[340857891,1729950660521,-521.22076853,0.00056986,120]
[340857892,1729950660530,-401.89940241,0.00056986,120]
[340857893,1729950660539,-500.0,0.00056986,120]
[340857894,1729950660548,-500.0,0.00056986,120]
[340857895,1729950660557,-500.0,0.00056986,120]
[340857896,1729950660566,-500.0,0.00056986,120]
[340857897,1729950660576,-500.0,0.00056986,120]
[340857898,1729950660585,-2385.55,0.00056986,120]
[340857899,1729950660595,-500.0,0.00056986,120]
[340857900,1729950660604,-500.0,0.00056986,120]
[340857901,1729950660613,-500.0,0.00056986,120]
[340857902,1729950660623,-500.0,0.00056986,120]
[340857903,1729950660632,-500.0,0.00056986,120]
[340857904,1729950660641,-500.0,0.00056986,120]
[340857905,1729950660650,-500.0,0.00056986,120]
[340857906,1729950660659,-558.32,0.00056986,120]
[340857907,1729950660668,-500.0,0.00056986,120]
[340857908,1729950660678,-500.0,0.00056986,120]
[340857909,1729950660687,-500.0,0.00056986,120]
[340857910,1729950660696,-500.0,0.00056986,120]
[340857911,1729950660705,-500.0,0.00056986,120]
[340857912,1729950660714,-2054.74496117,0.00057,120]
[340857913,1729950660723,-10648.7395484,0.00057,120]
[340857914,1729950660733,-200.0,0.00057,30]
[340857915,1729950660742,-159.375496,0.00057126,120]
[340857916,1729950660751,-767.636,0.00057511,112]
[340857917,1729950660760,-151.0,0.00057534,7]
[340857918,1729950660769,-500.0,0.00057534,120]
[340857919,1729950660778,-500.0,0.00057534,120]
[340857920,1729950660787,-500.0,0.00057534,120]
[340857921,1729950660796,-500.0,0.00057534,120]
[340857922,1729950660806,-500.0,0.00057534,120]
[340857923,1729950660815,-500.0,0.00057534,120]
[340857924,1729950660824,-500.0,0.00057534,60]
[340857925,1729950660833,-500.0,0.00057534,120]
[340857926,1729950660843,-500.0,0.00057534,120]
[340857927,1729950660851,-500.0,0.00057534,120]
[340857928,1729950660861,-500.0,0.00057534,120]
[340857929,1729950660872,-500.0,0.00057534,120]
[340857930,1729950660881,-500.0,0.00057534,120]
[340857931,1729950660890,-500.0,0.00057534,120]
[340857932,1729950660899,-500.0,0.00057534,120]
[340857933,1729950660908,-500.0,0.00057534,120]
[340857934,1729950660921,-587.99270397,0.00057534,120]
[340857935,1729950660930,-500.0,0.00057534,120]
[340857936,1729950660939,-500.0,0.00057534,120]
[340857937,1729950660948,-500.0,0.00057534,120]
[340857938,1729950660957,-374.54548802,0.00057534,120]
[340857939,1729950660966,-500.0,0.00057534,120]
[340857940,1729950660975,-500.0,0.00057534,120]
[340857941,1729950660983,-500.0,0.00057534,120]
[340857942,1729950660994,-500.0,0.00057534,120]
[340857943,1729950661004,-530.29984155,0.00057534,120]
[340857944,1729950661017,-500.0,0.00057534,120]
[340857945,1729950661028,-500.0,0.00057534,120]
[340857946,1729950661037,-622.21,0.00057534,120]
[340857947,1729950661047,-500.0,0.00057534,7]
[340857948,1729950661057,-500.0,0.00057534,120]
[340857949,1729950661067,-500.0,0.00057534,120]
[340857950,1729950661077,-500.0,0.00057534,120]
[340857951,1729950661087,-500.0,0.00057534,120]
[340857952,1729950661098,-544.56,0.00057534,120]
[340857953,1729950661108,-500.0,0.00057534,120]
[340857954,1729950661118,-646.96,0.00057534,120]
[340857955,1729950661127,-500.0,0.00057534,120]
[340857956,1729950661136,-500.0,0.00057534,120]
[340857957,1729950661145,-500.0,0.00057534,120]
[340857958,1729950661156,-500.0,0.00057534,120]
[340857959,1729950661165,-360.95539113,0.00057534,120]
[340857960,1729950661176,-500.0,0.00057534,120]
[340857961,1729950661185,-500.0,0.00057534,120]
[340857962,1729950661194,-500.0,0.00057534,120]
[340857963,1729950661203,-1062.59,0.00057534,120]
[340857964,1729950661212,-599.99893897,0.00057534,120]
[340857965,1729950661221,-500.0,0.00057534,120]
[340857966,1729950661230,-500.0,0.00057534,120]
[340857967,1729950661239,-536.64695418,0.00057534,120]
[340857968,1729950661248,-500.0,0.00057534,120]
[340857969,1729950661257,-500.0,0.00057534,120]
[340857970,1729950661266,-1368.19,0.00057534,120]
[340857971,1729950661275,-500.0,0.00057534,120]
[340857972,1729950661284,-1822.42,0.00057534,120]
[340857973,1729950661293,-875.75,0.00057534,120]
[340857974,1729950661302,-2994.32,0.00057534,120]
[340857975,1729950661311,-7500.0,0.00057534,120]
[340857976,1729950661320,-7500.0,0.00057534,120]
[340857977,1729950661329,-7500.0,0.00057534,120]
[340857978,1729950661339,-239.64137629,0.00057534,120]
[340857979,1729950661349,-500.0,0.00057534,120]
[340857980,1729950661359,-500.0,0.00057534,120]
[340857981,1729950661368,-500.0,0.00057534,120]
[340857982,1729950661378,-1119.44,0.00057534,120]
[340857983,1729950661388,-500.0,0.00057534,120]
[340857984,1729950661397,-1723.29,0.00057534,120]
[340857985,1729950661406,-500.0,0.00057534,120]
[340857986,1729950661415,-500.0,0.00057534,120]
[340857987,1729950661424,-500.0,0.00057534,120]
[340857988,1729950661434,-853.38,0.00057534,21]
[340857989,1729950661443,-500.0,0.00057534,120]
[340857990,1729950661453,-500.0,0.00057534,120]
[340857991,1729950661462,-500.0,0.00057534,120]
[340857992,1729950661471,-500.0,0.00057534,120]
[340857993,1729950661480,-500.0,0.00057534,120]
[340857994,1729950661490,-500.0,0.00057534,120]
[340857995,1729950661498,-500.0,0.00057534,120]
[340857996,1729950661507,-500.0,0.00057534,120]
[340857997,1729950661516,-346.19119876,0.00057534,120]
[340857998,1729950661527,-5331.28,0.00057534,120]
[340857999,1729950661537,-241.75662651,0.00057534,120]
[340858000,1729950661547,-500.0,0.00057534,120]
[340858001,1729950661558,-189.76923201,0.00057534,120]
[340858002,1729950661567,-755.58,0.00057534,120]
[340858003,1729950661576,-500.0,0.00057534,120]
[340858004,1729950661587,-172.4311849,0.00057534,120]
[340858005,1729950661596,-1730.63,0.00057534,120]
[340858006,1729950661605,-500.0,0.00057534,120]
[340858007,1729950661614,-500.0,0.00057534,120]
[340858008,1729950661624,-916.92,0.00057534,3]
[340858009,1729950661633,-500.0,0.00057534,120]
[340858010,1729950661643,-894.21,0.00057534,120]
[340858011,1729950661652,-500.0,0.00057534,120]
[340858012,1729950661661,-2988.0,0.00057534,120]
[340858013,1729950661671,-500.0,0.00057534,120]
[340858014,1729950661680,-500.0,0.00057534,120]
[340858015,1729950661689,-500.0,0.00057534,120]
[340858016,1729950661699,-500.0,0.00057534,120]
[340858017,1729950661708,-500.0,0.00057534,120]
[340858018,1729950661717,-500.0,0.00057534,120]
[340858019,1729950661726,-1175.82,0.00057534,120]
[340858020,1729950661735,-960.37,0.00057534,120]
[340858021,1729950661744,-604.4,0.00057534,120]
[340858022,1729950661822,-500.0,0.00057534,120]
[340858023,1729950661832,-507.22882458,0.00057534,120]
[340858024,1729950661842,-500.0,0.00057534,120]
[340858025,1729950661851,-500.0,0.00057534,120]
[340858026,1729950661860,-500.0,0.00057534,120]
[340858027,1729950661869,-2385.55,0.00057534,120]
[340858028,1729950661881,-500.0,0.00057534,120]
[340858029,1729950661890,-500.0,0.00057534,120]
[340858030,1729950661900,-217.14853917,0.00057534,120]
[340858031,1729950661909,-500.0,0.00057534,120]
[340858032,1729950661919,-500.0,0.00057534,120]
[340858033,1729950661927,-500.0,0.00057534,120]
[340858034,1729950661937,-459.12321418,0.00057534,120]
[340858035,1729950661946,-500.0,0.00057534,120]
[340858036,1729950661956,-558.32,0.00057534,120]
[340858037,1729950661965,-500.0,0.00057534,120]
[340858038,1729950661974,-179.53050732,0.00057534,120]
[340858039,1729950661984,-500.0,0.00057534,120]
[340858040,1729950661993,-500.0,0.00057534,120]
[340858041,1729950662003,-151.45,0.00057534,120]
[340858042,1729950662013,-839.73,0.000577,60]
[340858043,1729950662023,-50000.0,0.000579,60]
[340858044,1729950662032,-529.93,0.00057945,60]
[340858045,1729950662041,-757.78,0.00057945,60]
[340858046,1729950662050,-757.78,0.00057945,60]
[340858047,1729950662060,-425.24,0.00057945,60]
[340858048,1729950662069,-425.24,0.00057945,60]
[340858049,1729950662078,-757.78,0.00057945,60]
[340858050,1729950662088,-425.24,0.00057945,60]
[340858051,1729950662097,-757.78,0.00057945,60]
[340858052,1729950662107,-425.24,0.00057945,60]
[340858053,1729950662115,-757.78,0.00057945,60]
[340858054,1729950662125,-757.78,0.00057945,60]
[340858055,1729950662134,-230.33144521,0.00058,120]
[340858056,1729950662143,-2000.0,0.00058,120]
[340858057,1729950662154,-99909.99,0.00058,120]
[340858058,1729950662164,-28990.67908031,0.00058,7]
[340858059,1729950662175,-15375.0,0.00058,30]
[340858060,1729950662185,-156.03,0.00058,120]
[340858061,1729950662195,-151.0,0.00058,120]
[340858062,1729950662205,-151.0,0.00058,120]
[340858063,1729950662214,-151.0,0.00058,7]
[340858064,1729950662223,-193.430116,0.00058,120]
[340858065,1729950662234,-193.430116,0.00058,120]
[340858066,1729950662244,-539.953584,0.00058,120]
[340858067,1729950662254,-539.953584,0.00058,120]
[340858068,1729950662264,-174.476946,0.00058,120]
[340858069,1729950662274,-174.476946,0.00058,120]
[340858070,1729950662283,-174.362886,0.00058,120]
[340858071,1729950662293,-174.362886,0.00058,120]
[340858072,1729950662303,-169.150758,0.00058,120]
[340858073,1729950662312,-169.150758,0.00058,120]
[340858074,1729950662321,-169.544829,0.00058,120]
[340858075,1729950662331,-169.544829,0.00058,120]
[340858076,1729950662340,-186.98732,0.00058,120]
[340858077,1729950662349,-186.98732,0.00058,120]
[340858078,1729950662358,-151.0,0.00058,120]
[340858079,1729950662367,-223.153046,0.00058,120]
[340858080,1729950662376,-223.15305,0.00058,120]
[340858081,1729950662386,-226.895858,0.00058,120]
[340858082,1729950662396,-226.895868,0.00058,120]
[340858083,1729950662405,-151.0,0.00058,120]
[340858084,1729950662415,-500.0,0.00058082,120]
[340858085,1729950662424,-500.0,0.00058082,120]
[340858086,1729950662435,-500.0,0.00058082,120]
[340858087,1729950662444,-500.0,0.00058082,120]
[340858088,1729950662455,-500.0,0.00058082,120]
[340858089,1729950662466,-500.0,0.00058082,120]
[340858090,1729950662476,-500.0,0.00058082,60]
[340858091,1729950662485,-214.29037025,0.00058082,120]
[340858092,1729950662494,-500.0,0.00058082,120]
[340858093,1729950662504,-526.57522043,0.00058082,120]
[340858094,1729950662514,-500.0,0.00058082,120]
[340858095,1729950662526,-500.0,0.00058082,120]
[340858096,1729950662536,-500.0,0.00058082,120]
[340858097,1729950662546,-500.0,0.00058082,120]